bitfinex-derivatives/quotes_ETHF0:USTF0_20250726
["timestamp","ask_amount","ask_price","bid_price","bid_amount"]
[1753489910273,1.8253,3726.7,3726.6,1.17668945]
[1753489910773,1.8253,3726.7,3726.6,2.68018945]
[1753489911272,1.0539,3726.7,3726.6,2.68018945]
[1753489911575,0.3144,3726.7,3726.6,4.12480365]
[1753489912176,0.7837,3727.0,3726.9,2.34471]
[1753489912177,1.8253,3727.0,3726.9,2.34471]
[1753489912377,1.8253,3727.0,3726.9,2.68013945]
[1753489913278,0.7272,3727.9,3727.8,0.53638]
[1753489913477,0.7272,3727.9,3727.8,0.87180945]
[1753489913478,1.32696838,3727.9,3727.8,0.87180945]
[1753489913674,1.64136838,3727.9,3727.8,0.87180945]
[1753489913874,2.96143838,3727.9,3727.8,0.33542945]
[1753489915580,0.7272,3727.2,3726.9,1.44461534]
[1753489915779,2.3618,3727.0,3726.9,0.53651]
[1753489916077,1.2637,3727.0,3726.8,1.44461534]
[1753489916276,1.26371,3726.9,3726.8,1.44461534]
[1753489916480,0.53653,3726.8,3726.7,1.98114534]
[1753489916669,2.36183,3726.8,3726.7,1.98114534]
[1753489916873,1.8253,3726.8,3726.7,1.98114534]
[1753489917273,1.8253,3726.8,3726.7,1.31263]
[1753489917472,1.8253,3726.8,3726.7,1.50783]
[1753489918282,2.36183,3726.8,3726.7,1.50783]
[1753489918581,1.8253,3726.8,3726.7,1.72863]
[1753489918781,1.8253,3726.8,3726.7,2.05613]
[1753489919176,2.36183,3726.8,3726.7,2.05613]
[1753489920680,1.90553,3726.8,3726.7,2.34473]
[1753489920879,2.36183,3726.8,3726.7,2.05613]
[1753489921075,2.36183,3726.8,3726.7,0.7761]
[1753489921274,2.36183,3726.8,3726.7,1.74922931]
[1753489921475,2.36183,3726.8,3726.7,2.28576931]
[1753489921673,2.36183,3726.8,3726.7,1.74922931]
[1753489921980,2.36183,3726.8,3726.7,2.28576931]
[1753489922586,2.36183,3726.8,3726.7,2.75716931]
[1753489922781,2.36183,3726.8,3726.7,2.22062931]
[1753489923086,2.36183,3726.8,3726.7,2.75716931]
[1753489923573,2.36183,3726.8,3726.7,2.95236931]
[1753489923780,2.36183,3726.8,3726.7,3.17316931]
[1753489925181,2.36183,3726.8,3726.7,3.49316931]
[1753489927084,1.0539,3726.8,3726.7,3.78986931]
[1753489927284,1.0539,3726.8,3726.7,2.34534]
[1753489927580,0.7872,3727.1,3726.7,2.34534]
[1753489927888,1.5108,3727.1,3727.0,2.3125]
[1753489928082,2.04728,3727.1,3727.0,2.3125]
[1753489928282,2.36198,3727.1,3727.0,2.3125]
[1753489928678,2.36198,3727.1,3727.0,2.0158]
[1753489929586,2.36198,3727.1,3727.0,1.6958]
[1753489930183,2.96164182,3727.1,3727.0,1.6958]
[1753489931686,1.8255,3727.1,3727.0,2.3125]
[1753489931982,1.0435,3727.1,3727.0,2.3125]
[1753489932187,0.7236,3727.4,3727.3,2.31245]
[1753489932381,1.3225664,3727.4,3727.3,2.31245]
[1753489933287,0.8979664,3727.4,3727.3,2.31245]
[1753489933591,1.1060664,3727.4,3727.3,2.31245]
[1753489933789,1.6424664,3727.4,3727.3,2.31245]
[1753489933991,2.4244664,3727.4,3727.3,2.31245]
[1753489936387,2.4244664,3727.4,3727.3,2.01575]
[1753489937582,2.4244664,3727.4,3727.3,1.69575]
[1753489937789,2.4244664,3727.4,3727.3,0.53645]
[1753489938084,1.8255,3727.3,3727.2,0.53646]
[1753489938290,2.4244664,3727.3,3727.2,0.53646]
[1753489939082,2.9609364,3727.3,3727.2,0.53646]
[1753489939482,0.7393,3727.0,3726.9,0.7553]
[1753489939689,1.8255,3727.0,3726.9,0.53651]
[1753489939896,2.42463128,3727.0,3726.9,0.53651]
[1753489940190,2.96117146,3727.0,3726.9,0.53651]
[1753489940585,2.36203,3726.9,3726.8,0.53651]
[1753489940886,1.8255,3726.9,3726.8,0.53651]
[1753489941088,2.36201,3726.9,3726.8,0.53651]
[1753489941291,1.8255,3726.9,3726.8,0.53651]
[1753489941694,2.36201,3726.9,3726.8,0.53651]
[1753489942093,2.36201,3726.9,3726.8,1.98161136]
[1753489943690,2.36201,3726.9,3726.8,1.44510136]
[1753489943900,2.36203,3726.8,3726.7,1.44510136]
[1753489944801,2.36204,3726.7,3726.6,1.98164136]
[1753489944996,2.36204,3726.7,3726.6,2.73694136]
[1753489945203,1.8255,3726.7,3726.6,3.46094136]
[1753489946198,2.36204,3726.7,3726.6,3.46094136]
[1753489948300,2.36204,3726.7,3726.6,3.14094136]
[1753489949704,2.36204,3726.7,3726.6,0.5056]
[1753489949907,2.36204,3726.7,3726.6,0.2944]
[1753489950107,1.27585,3726.6,3726.5,1.98166136]
[1753489950309,2.36205,3726.6,3726.5,1.44510136]
[1753489950708,1.27587,3726.5,3726.4,1.98167136]
[1753489950909,1.27587,3726.5,3726.4,1.44510136]
[1753489951113,2.36207,3726.5,3726.4,1.98168136]
[1753489951805,2.36207,3726.5,3726.4,2.44258136]
[1753489952209,2.36207,3726.5,3726.4,0.99748]
[1753489952607,1.8255,3726.5,3726.4,0.99748]
[1753489952809,2.36207,3726.5,3726.4,1.29188]
[1753489953314,1.8255,3726.5,3726.4,1.29188]
[1753489953509,1.8255,3726.5,3726.4,1.48468]
[1753489953912,1.8255,3726.5,3726.4,1.80468]
[1753489954111,1.8255,3726.5,3726.4,2.01588]
[1753489956320,1.8255,3726.5,3726.4,1.29188]
[1753489956709,1.8255,3726.5,3726.4,1.48638]
[1753489956910,1.8255,3726.5,3726.4,2.01878]
[1753489957325,0.299,3726.5,3726.4,3.76008136]
[1753489957823,1.7517,3726.5,3726.4,3.46388136]
[1753489958728,1.7517,3726.5,3726.4,1.48638]
[1753489959617,2.28827,3726.5,3726.4,1.48638]
[1753489959925,1.7517,3726.5,3726.4,1.48638]
[1753489960424,1.7517,3726.5,3726.4,2.01878]
[1753489961419,2.28827,3726.5,3726.4,2.01878]
[1753489961618,2.28827,3726.5,3726.4,1.70798]
[1753489962319,1.97118,3726.4,3726.3,1.44510136]
[1753489962526,2.2826,3726.3,3726.2,0.55539564]
[1753489965126,2.2826,3726.3,3726.2,0.98309564]
[1753489965920,2.2826,3726.3,3726.2,1.27689564]
[1753489967824,2.2826,3726.3,3726.2,0.74028564]
[1753489970830,2.2826,3726.3,3726.2,0.01878564]
[1753489971428,2.2826,3726.3,3726.2,0.74028564]
[1753489972026,2.2826,3726.3,3726.2,0.01878564]
[1753489972833,2.2826,3726.3,3726.2,0.44648564]
[1753489974637,2.2826,3726.3,3726.2,0.74028564]
[1753489975835,2.2826,3726.3,3726.2,0.31258564]
[1753489977035,2.2826,3726.3,3726.2,0.74028564]
[1753489977532,2.2826,3726.3,3726.2,0.31258564]
[1753489977738,2.2826,3726.3,3726.2,0.01878564]
[1753489978131,2.87952773,3726.3,3726.2,0.01878564]
[1753489978927,0.795,3726.3,3726.2,2.29540564]
[1753489979132,0.8299,3726.3,3726.2,2.29540564]
[1753489980743,2.13862478,3726.3,3726.2,1.75878564]
[1753489981038,2.59252478,3726.3,3726.2,1.75878564]
[1753489981233,2.87962478,3726.3,3726.2,1.75878564]
[1753489981739,2.87962478,3726.3,3726.2,2.29540564]
[1753489982133,2.2826,3726.3,3726.2,1.75878564]
[1753489982840,2.2826,3726.3,3726.2,2.29540564]
[1753489983139,2.2826,3726.3,3726.2,1.75878564]
[1753489983443,2.2826,3726.3,3726.2,1.46258564]
[1753489983632,2.87963616,3726.3,3726.2,0.01878564]
[1753489984241,2.87963616,3726.3,3726.2,0.31258564]
[1753489984541,2.87963616,3726.3,3726.2,0.74028564]
[1753489984738,2.87963616,3726.3,3726.2,1.46258564]
[1753489985141,2.87963616,3726.3,3726.2,1.76328564]
[1753489985535,2.87963616,3726.3,3726.2,1.46258564]
[1753489987640,2.87963616,3726.3,3726.2,0.31258564]
[1753489987842,2.87963616,3726.3,3726.2,0.01878564]
[1753489988242,2.87963616,3726.3,3726.2,0.30978564]
[1753489988440,2.87963616,3726.3,3726.2,0.76128564]
[1753489988645,2.87963616,3726.3,3726.2,1.46248564]
[1753489993149,2.87963616,3726.3,3726.2,1.99910564]
[1753489993344,2.87963616,3726.3,3726.2,1.59720564]
[1753489993552,2.87963616,3726.3,3726.2,0.76128564]
[1753489993750,2.87963616,3726.3,3726.2,0.30978564]
[1753489994945,2.87963616,3726.3,3726.2,0.76128564]
[1753489995145,2.31164,3726.0,3725.9,0.4515]
[1753489995446,2.31166,3725.9,3725.8,3.08790901]
[1753489995951,2.31166,3725.9,3725.8,3.38860901]
[1753489999045,2.31166,3725.9,3725.8,2.58120901]
[1753489999242,2.31166,3725.9,3725.8,2.38670901]
[1753489999747,2.31166,3725.9,3725.8,1.93520901]
[1753489999942,2.31166,3725.9,3725.8,1.64420901]
[1753490000549,2.90167757,3725.9,3725.8,0.1986124]
[1753490002250,0.5068,3725.1,3725.0,0.4515]
[1753490002454,1.775,3725.1,3724.9,1.44559661]
[1753490002651,1.775,3725.1,3724.8,0.4515]
[1753490002652,1.2352,3724.9,3724.8,1.47382]
[1753490002853,2.3118,3724.9,3724.8,1.98052]
[1753490003555,2.3118,3724.9,3724.8,2.28122]
[1753490004251,2.3118,3724.9,3724.8,3.72745575]
[1753490004554,2.3118,3724.9,3724.8,3.19063575]
[1753490004754,2.3118,3724.9,3724.8,2.88993575]
[1753490005159,2.3118,3724.9,3724.8,3.42675575]
[1753490005654,2.3118,3724.9,3724.8,1.98052]
[1753490005855,2.3118,3724.9,3724.8,3.42675575]
[1753490006248,2.3118,3724.9,3724.8,3.72745575]
[1753490006858,2.3118,3724.9,3724.8,0.937]
[1753490007064,2.3118,3724.9,3724.8,0.7425]
[1753490007557,2.3118,3724.9,3724.8,1.2363]
[1753490009051,1.3419,3725.3,3725.0,1.22969]
[1753490009052,0.2909,3725.1,3725.0,1.22969]
[1753490009254,0.2909,3725.6,3725.3,0.53673]
[1753490009462,1.1491,3725.6,3725.5,1.7444]
[1753490009646,1.92901617,3725.6,3725.5,1.7444]
[1753490009847,2.14291617,3725.6,3725.5,2.28112]
[1753490010160,2.14291617,3725.6,3725.5,1.7444]
[1753490010660,2.14291617,3725.6,3725.5,2.28112]
[1753490011259,2.60711617,3725.6,3725.5,2.28112]
[1753490011658,0.58831617,3725.6,3725.5,2.28112]
[1753490011962,3.2078,3725.8,3725.7,2.28109]
[1753490012156,3.79605188,3725.8,3725.7,2.28109]
[1753490013766,3.2078,3726.2,3726.1,1.02213]
[1753490014065,1.41580134,3726.2,3726.1,2.28103]
[1753490014261,1.34062,3726.2,3726.1,2.28103]
[1753490014468,1.55452,3726.2,3726.1,2.28103]
[1753490014661,1.55452,3726.2,3726.1,1.7444]
[1753490014863,2.31162,3726.2,3726.1,2.28103]
[1753490017262,2.31162,3726.2,3726.1,1.7444]
[1753490018364,2.31162,3726.2,3726.1,2.28103]
[1753490019362,2.31162,3726.2,3726.1,1.7444]
[1753490019664,2.31162,3726.2,3726.1,1.4437]
[1753490019864,1.775,3726.2,3726.1,1.4437]
[1753490020065,2.31162,3726.2,3726.1,1.4437]
[1753490024268,2.31162,3726.2,3726.1,1.98033]
[1753490024570,1.0179,3726.2,3726.1,2.28153]
[1753490025066,1.55452,3726.2,3726.1,2.28153]
[1753490025266,1.0179,3726.2,3726.1,2.28153]
[1753490025773,1.55452,3726.2,3726.1,2.28153]
[1753490026769,1.0179,3726.2,3726.1,2.28153]
[1753490027768,1.55452,3726.2,3726.1,2.28153]
[1753490029270,1.4449,3726.2,3726.1,2.28153]
[1753490029566,1.98152,3726.2,3726.1,2.28153]
[1753490030764,2.28542,3726.2,3726.1,2.28153]
[1753490032266,1.7488,3726.2,3726.1,2.28153]
[1753490032668,2.28542,3726.2,3726.1,2.28153]
[1753490033569,2.28542,3726.2,3726.1,1.98033]
[1753490033970,1.7488,3726.2,3726.1,1.98033]
[1753490034466,2.28542,3726.2,3726.1,1.98033]
[1753490034871,1.7488,3726.2,3726.1,1.98033]
[1753490035064,2.28542,3726.2,3726.1,1.98033]
[1753490036080,0.501,3725.8,3725.7,1.25109]
[1753490036274,1.7515,3725.8,3725.7,1.53519]
[1753490036472,1.7515,3725.8,3725.7,1.83579]
[1753490036666,1.7515,3725.8,3725.7,2.28129]
[1753490037170,1.4476,3725.8,3725.7,2.28129]
[1753490037359,1.0206,3725.8,3725.7,2.28129]
[1753490037560,0.6202,3725.8,3725.7,2.28129]
[1753490037759,0.6202,3725.8,3725.7,3.72752575]
[1753490038064,0.6202,3725.8,3725.7,2.28129]
[1753490038471,0.6202,3725.8,3725.7,3.72752575]
[1753490038668,0.4004,3726.7,3726.6,1.55156]
[1753490039173,1.0206,3726.7,3726.6,2.28116]
[1753490039871,3.2078,3726.9,3726.8,0.53653]
[1753490040067,1.0206,3726.9,3726.8,2.28113]
[1753490042469,0.6202,3727.1,3727.0,1.2509]
[1753490042669,1.2100482,3727.1,3727.0,2.2811]
[1753490042868,0.5898482,3727.1,3727.0,2.2811]
[1753490043775,1.2100482,3727.1,3727.0,2.2811]
[1753490044175,1.4071482,3727.1,3727.0,2.2811]
[1753490044478,0.8173,3727.1,3727.0,2.2811]
[1753490045472,4.45001,3727.7,3727.6,0.2858]
[1753490045671,4.93044291,3727.7,3727.6,1.97011]
[1753490045877,4.93044291,3727.7,3727.6,2.25571]
[1753490046071,4.80584291,3727.7,3727.6,2.25571]
[1753490046576,1.59804291,3727.7,3727.6,2.25571]
[1753490047777,0.88354291,3727.7,3727.6,2.25571]
[1753490048172,0.58924291,3727.7,3727.6,2.25571]
[1753490048377,0.7982,3727.7,3727.6,2.25571]
[1753490048677,1.0088,3727.7,3727.6,2.25571]
[1753490049478,1.7273,3727.7,3727.6,1.97011]
[1753490050278,2.2637,3727.7,3727.6,1.69041]
[1753490050472,2.2637,3727.7,3727.6,0.53641]
[1753490050667,1.7273,3727.7,3727.5,0.53642]
[1753490050874,1.24224,3727.4,3727.3,1.28596]
[1753490051082,2.26374,3727.4,3727.3,1.28596]
[1753490051267,2.26374,3727.4,3727.3,0.2858]
[1753490051474,2.26382,3727.0,3726.9,0.5365]
[1753490051777,2.26382,3727.0,3726.9,0.8223]
[1753490051979,1.7273,3727.0,3726.9,1.9702]
[1753490052279,1.0088,3727.0,3726.9,2.2558]
[1753490052579,0.5939,3727.3,3727.2,2.25577]
[1753490052875,0.2943,3727.3,3727.2,2.25577]
[1753490055072,0.5939,3727.3,3727.2,2.25577]
[1753490056179,0.7982,3727.3,3727.2,2.25577]
[1753490056679,1.0088,3727.3,3727.2,2.25577]
[1753490056881,1.7273,3727.3,3727.2,2.25577]
[1753490057577,0.2943,3727.3,3727.2,2.25577]
[1753490058177,0.2943,3727.7,3727.6,0.53641]
[1753490058376,0.5939,3727.7,3727.6,2.25571]
[1753490058682,0.2943,3727.7,3727.6,2.25571]
[1753490058977,0.2,3727.9,3727.8,1.22669]
[1753490059181,0.4943,3727.9,3727.8,2.25569]
[1753490059375,1.2088,3727.9,3727.8,2.25569]
[1753490060982,0.2,3727.9,3727.8,2.25569]
[1753490061183,0.4943,3727.9,3727.8,2.25569]
[1753490061382,0.7939,3727.9,3727.8,2.25569]
[1753490061582,1.2088,3727.9,3727.8,2.25569]
[1753490061779,0.7939,3727.9,3727.8,2.25569]
[1753490062083,0.2,3727.9,3727.8,2.25569]
[1753490062971,0.2,3727.9,3727.8,10.46349]
[1753490064077,0.4943,3727.9,3727.8,10.46349]
[1753490064480,1.2088,3727.9,3727.8,5.46349]
[1753490064680,1.2088,3727.9,3727.8,2.25569]
[1753490064982,1.6364,3727.9,3727.8,2.25569]
[1753490065183,0.2,3727.9,3727.8,5.46349]
[1753490065483,0.4943,3727.9,3727.8,5.46349]
[1753490065983,0.2,3727.9,3727.8,5.46349]
[1753490067780,0.4943,3727.9,3727.8,5.46349]
[1753490072282,0.9982,3727.9,3727.8,5.46349]
[1753490072489,1.2088,3727.9,3727.8,6.90934989]
[1753490072683,1.6364,3727.9,3727.8,6.90934989]
[1753490073083,0.7939,3727.9,3727.8,6.90934989]
[1753490073287,0.7939,3727.9,3727.8,5.46349]
[1753490073490,0.4943,3727.9,3727.8,5.46349]
[1753490073988,0.4943,3727.9,3727.8,2.25569]
[1753490074187,0.4943,3727.9,3727.8,5.46349]
[1753490077092,0.7831,3727.9,3727.8,5.46349]
[1753490080294,0.7831,3727.9,3727.8,6.9069407]
[1753490080492,0.7831,3727.9,3727.8,5.46349]
[1753490080691,0.7831,3727.9,3727.8,6.90694032]
[1753490080886,0.7831,3727.9,3727.8,5.46349]
[1753490081095,0.7831,3727.9,3727.8,6.90694376]
[1753490081497,0.9928,3727.9,3727.8,6.90694376]
[1753490082001,1.197,3727.9,3727.8,6.90694376]
[1753490083397,1.197,3727.9,3727.8,5.46349]
[1753490083598,1.6232,3727.9,3727.8,5.46349]
[1753490089197,1.9226,3727.9,3727.8,5.46349]
[1753490091103,1.9226,3727.9,3727.8,4.49369]
[1753490091302,1.9226,3727.9,3727.8,3.74419]
[1753490092293,1.9226,3727.9,3727.8,0.53639]
[1753490092491,2.52080067,3727.9,3727.8,0.53639]
[1753490092704,3.05717067,3727.9,3727.8,0.53639]
[1753490093304,2.52080067,3727.9,3727.8,0.53639]
[1753490094003,1.9226,3727.9,3727.8,0.53639]
[1753490095401,1.9226,3727.9,3727.8,1.02909]
[1753490095603,1.9226,3727.9,3727.8,3.40205053]
[1753490095799,1.9226,3727.9,3727.8,3.69835053]
[1753490096000,1.6232,3727.9,3727.8,3.69835053]
[1753490096203,4.3473,3728.5,3728.4,0.5363]
[1753490096401,4.94582951,3728.5,3728.4,0.5363]
[1753490096704,1.73802951,3728.5,3728.4,2.2678]
[1753490098308,2.31452951,3728.5,3728.4,2.2678]
[1753490100010,2.02682951,3728.5,3728.4,2.2678]
[1753490100403,1.01242951,3728.5,3728.4,2.48059199]
[1753490100598,0.80272951,3728.5,3728.4,2.2678]
[1753490100801,0.59852951,3728.5,3728.4,2.2678]
[1753490102008,0.59852951,3728.5,3728.4,2.48401791]
[1753490102406,2.31452951,3728.5,3728.4,2.2678]
[1753490102602,1.716,3728.5,3728.4,0.5363]
[1753490107708,1.716,3728.5,3728.4,0.8423]
[1753490108110,1.716,3728.5,3728.4,1.8038]
[1753490108304,1.716,3728.5,3728.4,2.0986]
[1753490108511,1.1289,3728.5,3728.4,2.2903]
[1753490109013,4.9636,3729.3,3729.2,0.53618]
[1753490109504,4.9636,3729.3,3728.7,1.34062]
[1753490109505,0.3994,3728.8,3728.5,5.60611]
[1753490109708,1.7378,3728.6,3728.5,2.29028]
[1753490109913,1.7378,3728.6,3728.5,1.13708]
[1753490110112,1.7378,3728.6,3728.5,0.84228]
[1753490111106,0.5182,3728.8,3728.7,0.4865]
[1753490111414,1.7378,3728.8,3728.7,2.29026]
[1753490111612,1.4438,3728.8,3728.7,2.29026]
[1753490112312,1.7378,3729.0,3728.9,2.29023]
[1753490112508,2.33993578,3729.0,3728.9,2.29023]
[1753490113108,1.7378,3729.0,3728.9,2.29023]
[1753490114511,1.7378,3729.0,3728.9,0.53623]
[1753490114807,1.24406,3728.8,3728.7,0.53624]
[1753490115005,2.27406,3728.8,3728.7,0.53624]
[1753490115206,1.7378,3728.5,3728.4,1.4469591]
[1753490115407,1.2441,3728.5,3728.4,0.53628]
[1753490115807,1.06211,3728.3,3728.2,1.4469591]
[1753490116013,1.52543,3728.2,3728.1,1.9042991]
[1753490116213,1.52543,3728.2,3728.1,0.53634]
[1753490116413,1.52548,3728.0,3727.9,0.53636]
[1753490116808,0.53641,3727.7,3727.6,0.53639]
[1753490117117,0.9891,3727.6,3727.5,0.53643]
[1753490118418,0.9891,3727.6,3727.5,1.23283]
[1753490118610,0.9891,3727.6,3727.5,2.29043]
[1753490119814,0.6951,3727.6,3727.5,2.29043]
[1753490120409,0.1896,3727.6,3727.5,2.29043]
[1753490120609,0.3994,3727.9,3727.8,2.29039]
[1753490120810,0.6951,3728.2,3728.1,2.29034]
[1753490121110,0.9891,3728.5,3728.4,1.9779]
[1753490121315,1.59066401,3728.5,3728.4,2.2903]
[1753490121514,1.29666401,3728.5,3728.4,2.2903]
[1753490123318,1.59066401,3728.5,3728.4,2.2903]
[1753490124120,1.59075607,3728.5,3728.4,2.2903]
[1753490124317,0.9891,3728.5,3728.4,2.2903]
[1753490124520,1.59077342,3728.5,3728.4,2.2903]
[1753490124716,1.59078035,3728.5,3728.4,2.2903]
[1753490124921,0.9891,3728.5,3728.4,2.2903]
[1753490125117,1.59086567,3728.5,3728.4,2.2903]
[1753490125321,1.59088245,3728.5,3728.4,2.2903]
[1753490125522,1.59088245,3728.5,3728.4,0.5363]
[1753490126731,1.59088245,3728.5,3728.4,2.2903]
[1753490127423,0.9891,3728.5,3728.4,2.2903]
[1753490127624,0.9891,3728.8,3728.7,1.23266]
[1753490127820,1.59085991,3728.8,3728.7,2.29026]
[1753490128422,1.00115991,3728.8,3728.7,2.29026]
[1753490128933,1.29685991,3728.8,3728.7,2.29026]
[1753490129727,0.79135991,3728.8,3728.7,2.29026]
[1753490130034,1.29685991,3728.8,3728.7,2.29026]
[1753490130532,1.59085991,3728.8,3728.7,2.29026]
[1753490130928,1.59085991,3728.8,3728.7,0.83106]
[1753490131322,1.59085991,3728.8,3728.7,1.57626]
[1753490131534,1.59085991,3728.8,3728.7,2.29026]
[1753490131926,0.3994,3728.8,3728.7,2.29026]
[1753490132330,0.6951,3728.8,3728.7,2.29026]
[1753490132831,0.9891,3728.8,3728.7,2.29026]
[1753490133530,0.3994,3728.8,3728.7,2.29026]
[1753490135028,0.6924,3729.0,3728.9,0.4048]
[1753490135234,1.29444866,3729.0,3728.9,2.29223]
[1753490135434,0.98904866,3729.0,3728.9,2.29223]
[1753490135935,0.60204866,3729.0,3728.9,2.29223]
[1753490136131,0.6924,3729.2,3729.1,0.5362]
[1753490136334,1.29439791,3729.2,3729.1,1.2291]
[1753490136532,1.29439791,3729.2,3729.1,2.2922]
[1753490139134,0.60199791,3729.2,3729.1,2.2922]
[1753490139934,0.7104,3729.3,3729.2,2.29218]
[1753490140229,0.61981077,3729.3,3729.2,2.29218]
[1753490140430,0.018,3729.3,3729.2,2.29218]
[1753490142835,0.61911292,3729.3,3729.2,2.29218]
[1753490144133,1.61771292,3729.3,3729.2,2.29218]
[1753490145038,0.018,3729.3,3729.2,2.29218]
[1753490145641,0.61905536,3729.3,3729.2,2.29218]
[1753490149046,0.81245536,3729.3,3729.2,2.29218]
[1753490149246,1.00605536,3729.3,3729.2,2.29218]
[1753490149447,1.31145536,3729.3,3729.2,2.29218]
[1753490151546,0.61905536,3729.3,3729.2,2.29218]
[1753490152541,0.018,3729.3,3729.2,2.29218]
[1753490160149,0.405,3729.3,3729.2,2.29218]
[1753490160355,1.0166,3729.3,3729.2,2.29218]
[1753490162050,0.7104,3729.3,3729.2,2.29218]
[1753490162251,1.0166,3729.3,3729.2,2.29218]
[1753490163057,0.018,3729.3,3729.2,2.29218]
[1753490166759,0.018,3729.3,3729.2,13.29318]
[1753490169462,0.3029,3729.8,3729.5,0.4298]
[1753490169663,0.7098,3729.8,3729.7,2.23701]
[1753490170062,1.0103,3729.8,3729.7,2.23701]
[1753490170464,1.0103,3729.8,3729.7,3.68273621]
[1753490171871,1.0103,3729.8,3729.7,2.29173621]
[1753490172169,1.0103,3729.8,3729.7,0.53611]
[1753490172470,1.61266816,3729.8,3729.7,0.53611]
[1753490172863,1.61266816,3729.8,3729.7,0.82501]
[1753490173060,1.61266816,3729.8,3729.7,1.25481]
[1753490173370,1.61266816,3729.8,3729.7,2.23701]
[1753490174272,1.61266816,3729.8,3729.7,1.75541]
[1753490174968,1.61266816,3729.8,3729.7,0.53611]
[1753490177574,1.61266816,3729.8,3729.7,1.25481]
[1753490177774,1.61266816,3729.8,3729.7,1.75541]
[1753490177975,1.61266816,3729.8,3729.7,2.04241]
[1753490178576,1.61266816,3729.8,3729.7,2.23701]
[1753490180278,1.30976816,3729.8,3729.7,2.23701]
[1753490180873,1.61266816,3729.8,3729.7,2.23701]
[1753490181072,1.61266816,3729.8,3729.7,0.53611]
[1753490181472,0.3005,3729.7,3729.2,1.34045]
[1753490181677,0.4985,3729.3,3729.2,1.94818]
[1753490181872,0.3005,3729.3,3729.2,5.15598]
[1753490182073,0.90286816,3729.3,3729.2,5.15598]
[1753490182276,0.90286816,3729.3,3729.2,5.44488]
[1753490182476,0.60236816,3729.3,3729.2,5.44488]
[1753490182669,1.10131454,3729.4,3729.3,2.23706]
[1753490188283,1.10131454,3729.4,3729.3,1.32566]
[1753490189077,1.10131454,3729.4,3729.3,0.82506]
[1753490189480,1.10131454,3729.4,3729.3,1.75546]
[1753490189689,1.10131454,3729.4,3729.3,2.23706]
[1753490190287,1.10131454,3729.4,3729.3,1.95006]
[1753490190477,1.10131454,3729.4,3729.3,1.32566]
[1753490190878,0.80081454,3729.4,3729.3,2.23706]
[1753490191284,1.10131454,3729.4,3729.3,2.23706]
[1753490192084,0.60281454,3729.4,3729.3,2.23706]
[1753490192589,0.2,3729.9,3729.8,0.53609]
[1753490192789,0.2,3729.9,3729.8,2.23699]
[1753490192990,0.6985,3729.9,3729.8,2.23699]
[1753490193984,0.398,3729.9,3729.8,2.23699]
[1753490194889,0.6985,3729.9,3729.8,2.23699]
[1753490197693,0.2,3729.9,3729.8,1.75539]
[1753490197889,0.6893,3729.9,3729.8,2.24089]
[1753490201691,0.6893,3729.9,3729.8,1.31049]
[1753490202596,0.6893,3729.9,3729.8,1.50799]
[1753490202793,0.6893,3729.9,3729.8,1.98089]
[1753490203388,0.6893,3729.9,3729.8,2.27929]
[1753490204093,0.6893,3729.9,3729.8,0.82499]
[1753490204298,0.6893,3729.9,3729.8,0.53609]
[1753490204499,1.29023589,3729.9,3729.8,0.53609]
[1753490204792,1.29023589,3729.9,3729.8,0.83779]
[1753490205396,1.29023589,3729.9,3729.8,2.29209]
[1753490205996,0.6893,3729.9,3729.8,2.29209]
[1753490206195,0.2,3729.9,3729.8,2.29209]
[1753490206401,0.80091208,3729.9,3729.8,2.29209]
[1753490206795,1.29021208,3729.9,3729.8,2.29209]
[1753490207000,1.29017093,3729.9,3729.8,2.29209]
[1753490209201,1.29017093,3729.9,3729.8,0.83779]
[1753490210704,1.29017093,3729.9,3729.8,2.29209]
[1753490211606,1.29017093,3729.9,3729.8,1.99619]
[1753490211905,1.29017093,3729.9,3729.8,0.83779]
[1753490213407,1.82625093,3729.9,3729.8,0.83779]
[1753490213806,1.29017093,3729.9,3729.8,0.83779]
[1753490214308,1.29017093,3729.9,3729.8,2.29209]
[1753490216707,1.29017093,3729.9,3729.8,0.7976]
[1753490216911,1.82625093,3729.9,3729.8,1.3337]
[1753490217404,1.82625093,3729.9,3729.8,0.8378]
[1753490217804,1.82625093,3729.9,3729.8,0.3017]
[1753490218607,1.82625093,3729.9,3729.8,0.8378]
[1753490219611,1.82625093,3729.9,3729.8,0.3017]
[1753490220707,1.02544,3729.5,3729.4,0.1975]
[1753490221009,1.62631093,3729.5,3729.4,0.73365]
[1753490221207,1.62631093,3729.5,3729.4,1.03535]
[1753490221408,1.62631093,3729.5,3729.4,1.50825]
[1753490221802,1.62631093,3729.5,3729.4,1.80665]
[1753490222208,1.62631093,3729.5,3729.4,2.10255]
[1753490222704,1.62631093,3729.5,3729.4,0.7976]
[1753490223407,1.62631093,3729.5,3729.4,1.5664]
[1753490223609,1.62631093,3729.5,3729.4,0.3017]
[1753490223808,1.62631093,3729.5,3729.0,3.7012]
[1753490223809,0.7393,3729.1,3729.0,3.7012]
[1753490224010,1.62637093,3729.1,3729.0,3.94151]
[1753490224207,1.62637093,3729.1,3729.0,4.71281]
[1753490224405,1.62637093,3729.1,3729.0,5.19831]
[1753490224606,1.62637093,3729.1,3729.0,5.50001]
[1753490224806,1.62637093,3729.1,3729.0,4.9638]
[1753490225313,1.62637093,3729.1,3729.0,5.50001]
[1753490227215,1.62637093,3729.1,3729.0,4.9638]
[1753490227411,1.04515,3728.7,3728.6,3.5186]
[1753490227617,1.64602093,3728.7,3728.6,0.3108]
[1753490230711,1.04521,3728.3,3728.2,0.3108]
[1753490230916,1.64608093,3728.3,3728.2,0.502]
[1753490231121,1.64608093,3728.3,3728.2,1.5489]
[1753490231409,1.04521,3728.3,3728.2,1.5489]
[1753490231916,1.6483558,3728.3,3728.2,1.5489]